fUST/lending_fUST_20240227
["ID","MTS","AMOUNT","RATE_DAILY","PERIOD"]
[315414683,1709020244150,-500.0,0.00019999,2]
[315414685,1709020244160,-500.0,0.00019999,2]
[315414687,1709020244169,-500.0,0.00019999,2]
[315414689,1709020244179,-5200.57679775,0.0002,3]
[315414691,1709020244188,-6073.11175297,0.0002,3]
[315414693,1709020244197,-6073.11175297,0.0002,3]
[315414695,1709020244207,-6073.11175297,0.0002,3]
[315414697,1709020244216,-6073.11175297,0.0002,3]
[315414699,1709020244225,-6073.11175297,0.0002,3]
[315414701,1709020244234,-6073.11175297,0.0002,3]
[315414703,1709020244244,-6073.11175297,0.0002,3]
[315414705,1709020244253,-6073.11175297,0.0002,3]
[315414707,1709020244262,-6073.11175297,0.0002,3]
[315414709,1709020244272,-6073.11075297,0.0002,3]
[315414711,1709020244282,-10950.0,0.0002,2]
[315414713,1709020244291,-256.63,0.0002,7]
[315414715,1709020244300,-500.0,0.0002,2]
[315414717,1709020244309,-1572.0,0.0002,2]
[315414719,1709020244318,-66857.0,0.0002,2]
[315414721,1709020244328,-500.0,0.0002,2]
[315414723,1709020244337,-1171.2,0.0002,2]
[315414725,1709020244346,-710.68,0.0002,2]
[315414727,1709020244355,-500.0,0.0002,2]
[315414729,1709020244364,-151.0,0.0002,2]
[315414731,1709020244374,-151.0,0.0002,2]
[315414733,1709020244383,-500.0,0.0002,2]
[315414745,1709020244480,-500.0,0.0002,2]
[315414747,1709020244490,-2882.13,0.0002,2]
[315414749,1709020244500,-1215.26,0.0002,2]
[315414751,1709020244509,-567.56,0.0002,2]
[315414753,1709020244518,-2002.63,0.0002,2]
[315414755,1709020244527,-500.0,0.0002,2]
[315414757,1709020244537,-652.96,0.0002,2]
[315414759,1709020244546,-151.200963,0.0002,2]
[315414761,1709020244555,-301.519662,0.0002,2]
[315414763,1709020244564,-301.519662,0.0002,2]
[315414765,1709020244573,-301.519662,0.0002,2]
[315414767,1709020244582,-301.519662,0.0002,2]
[315414769,1709020244591,-500.0,0.0002,2]
[315414771,1709020244600,-151.69718814,0.0002,2]
[315414773,1709020244609,-500.0,0.0002,2]
[315414775,1709020244618,-500.0,0.0002,2]
[315414777,1709020244627,-1076.16,0.0002,2]
[315414779,1709020244637,-1271.68,0.0002,2]
[315414781,1709020244646,-500.0,0.0002,2]
[315414783,1709020244655,-151.584815,0.0002,2]
[315414785,1709020244664,-500.0,0.0002,2]
[315414787,1709020244673,-500.0,0.0002,2]
[315414789,1709020244683,-7651.24,0.0002,2]
[315414791,1709020244692,-1157.27,0.0002,2]
[315414793,1709020244701,-1361.11,0.0002,2]
[315414795,1709020244710,-2995.39,0.0002,2]
[315414797,1709020244719,-151.0,0.0002,2]
[315414799,1709020244728,-151.0,0.0002,2]
[315414801,1709020244737,-1325.04,0.0002,2]
[315414803,1709020244746,-590.64,0.0002,2]
[315414805,1709020244755,-2773.412973,0.0002,2]
[315414807,1709020244764,-2773.412973,0.0002,2]
[315414809,1709020244773,-2773.412973,0.0002,2]
[315414811,1709020244782,-2773.412973,0.0002,2]
[315414813,1709020244790,-1336.81,0.0002,2]
[315414815,1709020244799,-500.0,0.0002,2]
[315414817,1709020244809,-151.144151,0.0002,2]
[315414819,1709020244818,-2264.94,0.0002,2]
[315414820,1709020244826,-500.0,0.0002,2]
[315414823,1709020244836,-500.0,0.0002,2]
[315414825,1709020244845,-277.142699,0.0002,2]
[315414827,1709020244854,-500.0,0.0002,2]
[315414829,1709020244863,-833.74,0.0002,2]
[315414831,1709020244873,-630.377174,0.0002,2]
[315414833,1709020244882,-630.377174,0.0002,2]
[315414834,1709020244891,-630.377174,0.0002,2]
[315414837,1709020244900,-500.0,0.0002,2]
[315414839,1709020244910,-630.377174,0.0002,2]
[315414840,1709020244919,-630.377174,0.0002,2]
[315414842,1709020244928,-630.377174,0.0002,2]
[315414845,1709020244938,-500.0,0.0002,2]
[315414846,1709020244947,-543.83,0.0002,2]
[315414849,1709020244957,-1782.73,0.0002,2]
[315414851,1709020244966,-17271.99,0.0002,2]
[315414853,1709020244975,-248.463446,0.0002,2]
[315414855,1709020244984,-560.08,0.0002,2]
[315414857,1709020244993,-500.0,0.0002,2]
[315414859,1709020245002,-500.0,0.0002,2]
[315414861,1709020245010,-224.5571896,0.0002,2]
[315414863,1709020245019,-827.74,0.0002,2]
[315414865,1709020245028,-732.7,0.0002,2]
[315414867,1709020245037,-500.0,0.0002,2]
[315414869,1709020245046,-656.65,0.0002,2]
[315414871,1709020245056,-997.89,0.0002,2]
[315414873,1709020245065,-511.59,0.0002,2]
[315414875,1709020245074,-151.0,0.0002,2]
[315414876,1709020245085,-151.0,0.0002,2]
[315414878,1709020245094,-151.0,0.0002,2]
[315414881,1709020245103,-151.0,0.0002,2]
[315414882,1709020245112,-500.0,0.0002,2]
[315414884,1709020245122,-1308.33,0.0002,2]
[315414886,1709020245131,-18004.71,0.0002,2]
[315414888,1709020245141,-709.89,0.0002,2]
[315414890,1709020245150,-6520.56,0.0002,2]
[315414892,1709020245159,-1292.03,0.0002,2]
[315414894,1709020245168,-2279.88,0.0002,2]
[315414896,1709020245178,-4812.43,0.0002,2]
[315414898,1709020245186,-3324.47,0.0002,2]
[315414900,1709020245195,-702.79,0.0002,2]
[315414902,1709020245205,-1765.2,0.0002,2]
[315414904,1709020245214,-2913.1,0.0002,2]
[315414906,1709020245223,-1858.75,0.0002,2]
[315414908,1709020245233,-500.0,0.0002,2]
[315414910,1709020245242,-1317.34154787,0.00020001,2]
[315414913,1709020245252,-1884.3348861,0.0002004,2]
[315414915,1709020245262,-50000.0,0.00020048,5]
[315414917,1709020245271,-50000.0,0.00020049,5]
[315414918,1709020245279,-2773.412973,0.00020049,2]
[315414921,1709020245289,-2773.412973,0.00020049,2]
[315414922,1709020245297,-151.0,0.00020049,2]
[315414924,1709020245306,-205.421068,0.00020049,2]
[315414926,1709020245315,-500.0,0.00020055,2]
[315414928,1709020245324,-283.31795515,0.00020055,2]
[315414930,1709020245333,-500.0,0.00020055,2]
[315414932,1709020245341,-500.0,0.00020055,2]
[315414934,1709020245350,-500.0,0.00020055,2]
[315414936,1709020245359,-500.0,0.00020055,2]
[315414938,1709020245368,-500.0,0.00020055,2]
[315414941,1709020245377,-500.0,0.00020055,2]
[315414943,1709020245386,-500.0,0.00020055,2]
[315414945,1709020245395,-500.0,0.00020055,2]
[315414946,1709020245404,-500.0,0.00020055,2]
[315414948,1709020245413,-500.0,0.00020055,2]
[315414950,1709020245422,-151.0,0.00020056,2]
[315414953,1709020245432,-301.519662,0.00020056,2]
[315414955,1709020245441,-301.519662,0.00020056,2]
[315414957,1709020245451,-2773.412973,0.00020056,2]
[315414959,1709020245460,-2773.412973,0.00020056,2]
[315414961,1709020245469,-630.377174,0.00020056,2]
[315414963,1709020245478,-630.377174,0.00020056,2]
[315414965,1709020245488,-1300.00877613,0.00020066,2]
[315414967,1709020245497,-1300.00877613,0.00020066,2]
[315414969,1709020245506,-1300.00877613,0.00020066,2]
[315414971,1709020245515,-1300.00877613,0.00020066,2]
[315414973,1709020245524,-1300.00877613,0.00020066,2]
[315414975,1709020245534,-166.666666,0.00020076,2]
[315414977,1709020245543,-175.5,0.000201,2]
[315414979,1709020245552,-151.0,0.000201,2]
[315414981,1709020245561,-48067.57548558,0.00020101,5]
[315414983,1709020245573,-151.0,0.00020101,2]
[315414985,1709020245582,-301.519662,0.00020101,2]
[315414987,1709020245591,-301.519662,0.00020101,2]
[315414989,1709020245601,-630.377174,0.00020101,2]
[315414991,1709020245610,-630.377174,0.00020101,2]
[315414993,1709020245619,-151.0,0.00020101,2]
[315414995,1709020245629,-500.0,0.00020106,2]
[315414997,1709020245638,-1884.3348861,0.00020212,2]
[315414999,1709020245647,-500.0,0.00020214,2]
[315415001,1709020245656,-153.0,0.00020219,2]
[315415003,1709020245665,-153.7606601,0.00020219,2]
[315415005,1709020245675,-153.0,0.00020219,2]
[315415007,1709020245684,-96072.54768136,0.00020252,2]
[315415009,1709020245694,-2773.412973,0.00020252,2]
[315415011,1709020245703,-2773.412973,0.00020252,2]
[315415013,1709020245713,-630.377174,0.00020252,2]
[315415015,1709020245722,-630.377174,0.00020252,2]
[315415017,1709020245731,-151.0,0.00020252,2]
[315415019,1709020245741,-500.0,0.00020272,2]
[315415021,1709020245749,-500.0,0.00020272,2]
[315415023,1709020245759,-160.0,0.00020272,2]
[315415025,1709020245768,-500.0,0.00020273,2]
[315415027,1709020245777,-1171.2,0.00020273,2]
[315415029,1709020245786,-710.68,0.00020273,2]
[315415031,1709020245795,-500.0,0.00020273,2]
[315415033,1709020245804,-151.0,0.00020273,2]
[315415035,1709020245813,-151.0,0.00020273,2]
[315415037,1709020245822,-500.0,0.00020273,2]
[315415039,1709020245832,-500.0,0.00020273,2]
[315415041,1709020245841,-2882.13,0.00020273,2]
[315415043,1709020245850,-1215.26,0.00020273,2]
[315415045,1709020245859,-567.56,0.00020273,2]
[315415047,1709020245868,-2002.63,0.00020273,2]
[315415049,1709020245877,-500.0,0.00020273,2]
[315415051,1709020245886,-652.96,0.00020273,2]
[315415053,1709020245895,-301.519662,0.00020273,2]
[315415055,1709020245904,-301.519662,0.00020273,2]
[315415057,1709020245913,-301.519662,0.00020273,2]
[315415059,1709020245923,-301.519662,0.00020273,2]
[315415060,1709020245932,-339.51057071,0.00020273,2]
[315415062,1709020245941,-500.0,0.00020273,2]
[315415065,1709020245951,-500.0,0.00020273,2]
[315415067,1709020245961,-1076.16,0.00020273,2]
[315415069,1709020245970,-1271.68,0.00020273,2]
[315415071,1709020245980,-500.0,0.00020273,2]
[315415073,1709020245989,-500.0,0.00020273,2]
[315415074,1709020245998,-500.0,0.00020273,2]
[315415077,1709020246008,-2991.01362942,0.00020273,2]
[315415214,1709020247440,-2011.16,0.00019178,2]
[315415216,1709020247449,-500.0,0.00019178,2]
[315415218,1709020247458,-500.0,0.00019178,2]
[315415220,1709020247468,-500.0,0.00019178,2]
[315415222,1709020247477,-500.0,0.00019178,2]
[315415224,1709020247486,-500.0,0.00019178,2]
[315415225,1709020247496,-2011.16,0.00019452,2]
[315415227,1709020247529,-500.0,0.00019452,2]
[315415230,1709020247539,-500.0,0.00019452,2]
[315415231,1709020247549,-500.0,0.00019452,2]
[315415233,1709020247558,-2011.16,0.00019726,2]
[315415235,1709020247568,-569.87,0.00019726,2]
[315415237,1709020247578,-500.0,0.00019726,2]
[315415239,1709020247587,-500.0,0.00019726,2]
[315415241,1709020247596,-2011.16,0.0002,2]
[315415243,1709020247606,-500.0,0.0002,2]
[315415245,1709020247615,-4660.22637058,0.00020273,2]
[315415247,1709020247624,-1157.27,0.00020273,2]
[315415249,1709020247633,-1361.11,0.00020273,2]
[315415251,1709020247643,-2995.39,0.00020273,2]
[315415253,1709020247652,-1325.04,0.00020273,2]
[315415255,1709020247660,-590.64,0.00020273,2]
[315415257,1709020247669,-2773.412973,0.00020273,2]
[315415260,1709020247679,-2773.412973,0.00020273,2]
[315415262,1709020247688,-1336.81,0.00020273,2]
[315415264,1709020247698,-500.0,0.00020273,2]
[315415266,1709020247708,-2264.94,0.00020273,2]
[315415268,1709020247717,-500.0,0.00020273,2]
[315415270,1709020247726,-500.0,0.00020273,2]
[315415272,1709020247736,-564.35457084,0.00020273,2]
[315415274,1709020247744,-833.74,0.00020273,2]
[315415276,1709020247754,-630.377174,0.00020273,2]
[315415278,1709020247764,-500.0,0.00020273,2]
[315415280,1709020247774,-630.377174,0.00020273,2]
[315415282,1709020247784,-315.7137325,0.00020273,2]
[315415284,1709020247793,-1782.73,0.00020273,2]
[315415286,1709020247802,-17271.99,0.00020273,2]
[315415288,1709020247811,-560.08,0.00020273,2]
[315415289,1709020247820,-500.0,0.00020273,2]
[315415292,1709020247833,-500.0,0.00020273,2]
[315415294,1709020247842,-827.74,0.00020273,2]
[315415295,1709020247851,-732.7,0.00020273,2]
[315415298,1709020247860,-422.30378237,0.00020273,2]
[315415300,1709020247871,-656.65,0.00020273,2]
[315415301,1709020247880,-997.89,0.00020273,2]
[315415303,1709020247890,-511.59,0.00020273,2]
[315415305,1709020247899,-151.0,0.00020273,2]
[315415308,1709020247909,-500.0,0.00020273,2]
[315415310,1709020247919,-1308.33,0.00020273,2]
[315415312,1709020247928,-18004.71,0.00020273,2]
[315415314,1709020247937,-709.89,0.00020273,2]
[315415316,1709020247946,-6520.56,0.00020273,2]
[315415318,1709020247955,-1292.03,0.00020273,2]
[315415319,1709020247964,-2279.88,0.00020273,2]
[315415321,1709020247973,-4812.43,0.00020273,2]
[315415323,1709020247982,-3324.47,0.00020273,2]
[315415325,1709020247992,-702.79,0.00020273,2]
[315415327,1709020248002,-1765.2,0.00020273,2]
[315415329,1709020248011,-2913.1,0.00020273,2]
[315415331,1709020248020,-1858.75,0.00020273,2]
[315415333,1709020248030,-500.0,0.00020273,2]
[315415335,1709020248039,-2011.16,0.00020273,2]
[315415337,1709020248049,-500.0,0.00020273,2]
[315415339,1709020248058,-500.0,0.00020321,2]
[315415341,1709020248068,-1884.3348861,0.00020384,2]
[315415343,1709020248078,-1324.46051599,0.00020398,2]
[315415345,1709020248088,-500.0,0.00020428,2]
[315415347,1709020248097,-150.316,0.00020497,2]
[315415349,1709020248106,-166.666666,0.00020524,2]
[315415351,1709020248114,-500.0,0.00020535,2]
[315415353,1709020248124,-155.42848835,0.00020545,2]
[315415355,1709020248133,-194.26769162,0.00020545,2]
[315415357,1709020248142,-500.0,0.00020546,2]
[315415359,1709020248151,-289.4213921,0.00020546,2]
[315415361,1709020248160,-500.0,0.00020546,2]
[315415363,1709020248169,-500.0,0.00020546,2]
[315415365,1709020248179,-500.0,0.00020546,2]
[315415367,1709020248188,-500.0,0.00020546,2]
[315415369,1709020248197,-500.0,0.00020546,2]
[315415371,1709020248206,-500.0,0.00020546,2]
[315415373,1709020248215,-500.0,0.00020546,2]
[315415375,1709020248224,-507.62180507,0.00020546,2]
[315415377,1709020248233,-500.0,0.00020546,2]
[315415379,1709020248243,-420.42474864,0.00020546,2]
[315415381,1709020248251,-500.0,0.00020546,2]
[315415383,1709020248260,-500.0,0.00020546,2]
[315415385,1709020248269,-500.0,0.00020546,2]
[315415387,1709020248278,-500.0,0.00020546,2]
[315415389,1709020248286,-500.0,0.00020546,2]
[315415391,1709020248296,-160.0,0.00020546,2]
[315415393,1709020248305,-500.0,0.00020547,2]
[315415395,1709020248313,-1171.2,0.00020547,2]
[315415397,1709020248322,-710.68,0.00020547,2]
[315415399,1709020248331,-316.02608932,0.00020547,2]
[315415401,1709020248340,-151.0,0.00020547,2]
[315415403,1709020248349,-500.0,0.00020547,2]
[315415405,1709020248358,-2882.13,0.00020547,2]
[315415407,1709020248368,-1215.26,0.00020547,2]
[315415409,1709020248376,-567.56,0.00020547,2]
[315415410,1709020248385,-2002.63,0.00020547,2]
[315415413,1709020248395,-500.0,0.00020547,2]
[315415415,1709020248404,-652.96,0.00020547,2]
[315415416,1709020248414,-301.519662,0.00020547,2]
[315415418,1709020248423,-301.519662,0.00020547,2]
[315415420,1709020248432,-305.26837366,0.00020547,2]
[315415422,1709020248441,-625.77125081,0.00020547,2]
[315415424,1709020248450,-1076.16,0.00020547,2]
[315415426,1709020248459,-500.0,0.00020547,2]
[315415428,1709020248468,-500.0,0.00020547,2]
[315415430,1709020248477,-200.0,0.00020547,2]
[315415432,1709020248486,-7651.24,0.00020547,2]
[315415434,1709020248496,-1157.27,0.00020547,2]
[315415436,1709020248508,-1361.11,0.00020547,2]
[315415438,1709020248517,-2995.39,0.00020547,2]
[315415440,1709020248526,-1325.04,0.00020547,2]
[315415442,1709020248535,-590.64,0.00020547,2]
[315415444,1709020248545,-2773.412973,0.00020547,2]
[315415446,1709020248554,-2773.412973,0.00020547,2]
[315415448,1709020248563,-1336.81,0.00020547,2]
[315415450,1709020248572,-500.0,0.00020547,2]
[315415452,1709020248581,-2264.94,0.00020547,2]
[315415454,1709020248590,-500.0,0.00020547,2]
[315415456,1709020248600,-500.0,0.00020547,2]
[315415458,1709020248609,-833.74,0.00020547,2]
[315415460,1709020248622,-630.377174,0.00020547,2]
[315415462,1709020248631,-500.0,0.00020547,2]
[315415464,1709020248640,-630.377174,0.00020547,2]
[315415466,1709020248649,-1782.73,0.00020547,2]
[315415468,1709020248658,-17271.99,0.00020547,2]
[315415470,1709020248667,-560.08,0.00020547,2]
[315415472,1709020248677,-500.0,0.00020547,2]
[315415474,1709020248686,-500.0,0.00020547,2]
[315415476,1709020248695,-827.74,0.00020547,2]
[315415478,1709020248706,-732.7,0.00020547,2]
[315415480,1709020248715,-656.65,0.00020547,2]
[315415482,1709020248724,-997.89,0.00020547,2]
[315415484,1709020248733,-511.59,0.00020547,2]
[315415486,1709020248742,-151.0,0.00020547,2]
[315415488,1709020248751,-500.0,0.00020547,2]
[315415490,1709020248760,-1308.33,0.00020547,2]
[315415492,1709020248769,-18004.71,0.00020547,2]
[315415494,1709020248778,-709.89,0.00020547,2]
[315415496,1709020248789,-6520.56,0.00020547,2]
[315415497,1709020248798,-1292.03,0.00020547,2]
[315415499,1709020248807,-2279.88,0.00020547,2]
[315415501,1709020248815,-4812.43,0.00020547,2]
[315415503,1709020248824,-3324.47,0.00020547,2]
[315415505,1709020248834,-702.79,0.00020547,2]
[315415507,1709020248843,-1765.2,0.00020547,2]
[315415509,1709020248852,-2913.1,0.00020547,2]
[315415511,1709020248861,-1858.75,0.00020547,2]
[315415513,1709020248871,-500.0,0.00020547,2]
[315415515,1709020248880,-2011.16,0.00020547,2]
[315415517,1709020248889,-1884.3348861,0.00020556,2]
[315415519,1709020248899,-159.80558045,0.00020574,2]
[315415520,1709020248908,-50000.0,0.00020582,4]
[315415521,1709020248917,-50000.0,0.00020582,4]
[315415522,1709020248925,-58971.72887332,0.00020582,4]
[315415524,1709020248935,-5000.0,0.00020582,5]
[315415526,1709020248943,-5000.0,0.00020582,5]
[315415528,1709020248952,-5000.0,0.00020582,5]
[315415530,1709020248961,-5000.0,0.00020582,5]
[315415532,1709020248970,-5000.0,0.00020582,5]
[315415534,1709020248979,-5000.0,0.00020582,5]
[315415536,1709020248988,-5000.0,0.00020582,5]
[315415538,1709020248997,-5000.0,0.00020582,5]
[315415540,1709020249006,-5000.0,0.00020582,5]
[315415549,1709020249015,-5000.0,0.00020582,5]
[315415550,1709020249112,-151.0,0.00020582,2]
[315415551,1709020249122,-299.067643,0.00020582,2]
[315415552,1709020249131,-65428.39254522,0.00020582,5]
[315415553,1709020249140,-5000.0,0.00020582,5]
[315415554,1709020249149,-301.519662,0.00020582,2]
[315415555,1709020249160,-301.519662,0.00020582,2]
[315415556,1709020249169,-301.519662,0.00020582,2]
[315415557,1709020249179,-301.519662,0.00020582,2]
[315415558,1709020249187,-301.519662,0.00020582,2]
[315415559,1709020249196,-301.519656,0.00020582,2]
[315415560,1709020249206,-2773.412973,0.00020582,2]
[315415561,1709020249215,-2773.412973,0.00020582,2]
[315415562,1709020249225,-2773.412973,0.00020582,2]
[315415563,1709020249234,-2773.412973,0.00020582,2]
[315415564,1709020249243,-2773.412973,0.00020582,2]
[315415565,1709020249253,-2773.41296409,0.00020582,2]
[315415566,1709020249262,-630.377174,0.00020582,2]
[315415567,1709020249271,-630.377174,0.00020582,2]
[315415568,1709020249280,-630.377174,0.00020582,2]
[315415570,1709020249290,-630.37718,0.00020582,2]
[315415572,1709020249298,-151.0,0.00020582,2]
[315415574,1709020249307,-151.0,0.00020582,2]
[315415575,1709020249316,-50000.0,0.00020583,3]
[315415577,1709020249326,-151.0,0.00020583,2]
[315415579,1709020249335,-50000.0,0.00020585,5]
[315415581,1709020249344,-50713.82355033,0.00020586,4]
[315415583,1709020249353,-50000.0,0.00020586,4]
[315415585,1709020249363,-41436.37502296,0.00020586,3]
[315415587,1709020249371,-5000.0,0.00020586,5]
[315415589,1709020249380,-5000.0,0.00020586,5]
[315415591,1709020249390,-5000.0,0.00020586,5]
[315415593,1709020249399,-5000.0,0.00020586,5]
[315415595,1709020249408,-48396.90088758,0.00020586,4]
[315415597,1709020249417,-5000.0,0.00020587,5]
[315415599,1709020249426,-27392.65196506,0.00020587,4]
[315415601,1709020249435,-11351.45274867,0.00020587,5]
[315415604,1709020249449,-6144.8559952,0.00020587,5]
[315415653,1709020249949,-500.0,0.00019178,2]
[315415655,1709020249958,-325.0980658,0.00019342,3]
[315415658,1709020249971,-10664.0619342,0.00019342,3]
[315415660,1709020249980,-244.23,0.00019452,2]
[315415662,1709020249989,-500.0,0.00019452,2]
[315415664,1709020250000,-500.0,0.00019726,2]
[315415666,1709020250009,-613.05,0.0002,2]
[315415668,1709020250018,-500.0,0.00020546,2]
[315415670,1709020250027,-500.0,0.00020546,2]
[315415672,1709020250036,-500.0,0.00020546,2]
[315415674,1709020250045,-500.0,0.00020546,2]
[315415676,1709020250054,-500.0,0.00020547,2]
[315415678,1709020250064,-32503.69125613,0.00020587,5]
[315415680,1709020250073,-5000.0,0.00020588,5]
[315415682,1709020250082,-5000.0,0.0002059,5]
[315415684,1709020250093,-5000.0,0.00020591,5]
[315415686,1709020250103,-5000.0,0.00020591,5]
[315415688,1709020250112,-5000.0,0.00020591,5]
[315415690,1709020250122,-5000.0,0.00020593,5]
[315415692,1709020250130,-50000.0,0.00020595,4]
[315415694,1709020250139,-20479.90196799,0.00020597,3]
[315415696,1709020250148,-50000.0,0.00020598,4]
[315415698,1709020250157,-580.0,0.000206,2]
[315415700,1709020250168,-500.0,0.00020643,2]
[315415702,1709020250177,-18037.63077047,0.00020674,3]
[315415704,1709020250186,-150.45288083,0.0002068,2]
[315415706,1709020250195,-3022.79391306,0.0002068,2]
[315415708,1709020250204,-1705.70225263,0.00020681,2]
[315415710,1709020250213,-1000.0,0.00020681,5]
[315415712,1709020250222,-1376.48632743,0.00020681,2]
[315415714,1709020250231,-1000.0,0.00020681,5]
[315415716,1709020250240,-1000.0,0.00020681,5]
[315415717,1709020250249,-1000.0,0.00020681,5]
[315415719,1709020250259,-1000.0,0.00020681,5]
[315415721,1709020250268,-7361.27539475,0.00020681,2]
[315415723,1709020250277,-1000.0,0.00020681,5]
[315415725,1709020250287,-1000.0,0.00020681,5]
[315415727,1709020250296,-4769.30298893,0.00020681,2]
[315415845,1709020839243,200.0,0.00027246,120]
[315415847,1709020976121,2000.0,0.00021,21]
[315415848,1709021030754,1000.0,0.00021,21]
[315415849,1709021060579,1000.0,0.00021,21]
[315415901,1709021435542,-155.18156243,0.00017692,2]
[315415903,1709021435552,-300.8218746,0.00017693,2]
[315415905,1709021435561,-155.18156243,0.00017694,2]
[315415907,1709021435570,-10635.82540845,0.00017695,2]
[315415909,1709021435581,-13230.57395491,0.00017695,2]
[315415956,1709021438388,-1033.60063664,0.00017695,2]
[315415957,1709021438398,-2046.88744611,0.00017811,2]
[315415958,1709021438407,-243.9253332,0.00017814,2]
[315415960,1709021438419,-164.28501003,0.00017977,2]
[315415962,1709021438429,-3547.84687376,0.00018077,2]
[315415964,1709021438438,-186.56352856,0.00018759,2]
[315415965,1709021438448,-300.0,0.00018858,2]
[315415967,1709021438457,-1591.62159516,0.00018859,2]
[315415968,1709021438467,-2671.50987244,0.000189,2]
[315415970,1709021438476,-580.30813188,0.00019,2]
[315415972,1709021438485,-201.16819801,0.00019032,3]
[315415973,1709021438494,-1459.24829285,0.00019032,2]
[315415976,1709021438503,-10973.03508136,0.00019068,2]
[315415982,1709021438547,-1737.2216801,0.00019068,2]
[315415984,1709021438559,-95380.94917808,0.00019068,2]
[315415986,1709021438568,-155.56991007,0.00019076,2]
[315415988,1709021438578,-310.18417045,0.00019076,2]
[315415990,1709021438587,-1426.92090632,0.00019076,2]
[315415992,1709021438596,-1415.23694982,0.00019076,2]
[315415994,1709021438606,-677.63039437,0.00019076,2]
[315415996,1709021438614,-500.0,0.00019077,2]
[315415998,1709021438624,-743.92907753,0.00019077,2]
[315416000,1709021438633,-276000.0,0.00019078,2]
[315416002,1709021438642,-500.0,0.00019132,2]
[315416004,1709021438650,-500.0,0.00019178,2]
[315416006,1709021438660,-733.11,0.00019178,2]
[315416008,1709021438669,-500.0,0.00019178,2]
[315416010,1709021438679,-500.0,0.00019178,2]
[315416012,1709021438688,-500.0,0.00019178,2]
[315416014,1709021438698,-501.62472493,0.00019178,2]
[315416016,1709021438707,-500.0,0.00019178,2]
[315416018,1709021438717,-500.0,0.00019178,2]
[315416020,1709021438726,-334.88546012,0.00019178,2]
[315416022,1709021438736,-523.56834789,0.00019178,2]
[315416024,1709021438745,-500.0,0.00019178,2]
[315416026,1709021438754,-501.36407866,0.00019178,2]
[315416028,1709021438763,-583.2051723,0.00019178,2]
[315416030,1709021438773,-500.0,0.00019178,2]
[315416032,1709021438785,-500.0,0.00019178,2]
[315416034,1709021438794,-500.0,0.00019178,2]
[315416036,1709021438803,-500.0,0.00019178,2]
[315416037,1709021438812,-500.0,0.00019178,2]
[315416038,1709021438821,-500.0,0.00019178,2]
[315416039,1709021438831,-500.0,0.00019178,2]
[315416040,1709021438840,-502.99389628,0.00019178,2]
[315416041,1709021438850,-401.70891154,0.00019178,2]
[315416042,1709021438859,-501.98121851,0.00019178,2]
[315416043,1709021438869,-500.0,0.00019178,2]
[315416044,1709021438878,-500.0,0.00019178,2]
[315416045,1709021438887,-500.0,0.00019178,2]
[315416046,1709021438897,-1333.94,0.00019178,2]
[315416047,1709021438906,-451.77238634,0.00019178,2]
[315416048,1709021438915,-500.0,0.00019178,2]
[315416049,1709021438924,-500.0,0.00019178,2]
[315416050,1709021438933,-501.95643743,0.00019178,2]